fUSD/lending_fUSD_20241110
["ID","MTS","AMOUNT","RATE_DAILY","PERIOD"]
[341753998,1731205540219,-4728.4053484,0.00014069,2]
[341753999,1731205540243,-798.49,0.00014069,2]
[341754000,1731205540266,-250.0,0.00014172,2]
[341754001,1731205540288,-1000.0,0.00014175,2]
[341754002,1731205540312,-36013.0881795,0.00014293,2]
[341754003,1731205555730,150.0,6.94e-05,2]
[341754004,1731205555752,150.0,6.94e-05,2]
[341754005,1731205555774,150.0,6.94e-05,2]
[341754006,1731205555795,5.95425329,6.94e-05,2]
[341754007,1731205557084,-1834.9118205,0.00014293,2]
[341754008,1731205557108,-810.96,0.00014366,2]
[341754009,1731205557131,-3929.05,0.00014427,2]
[341754010,1731205557153,-179.48,0.00014468,2]
[341754011,1731205557178,-509.74,0.00014562,2]
[341754012,1731205557200,-150.0,0.00014601,2]
[341754013,1731205557225,-13481.06,0.00014602,2]
[341754014,1731205557250,-165.86,0.00014723,2]
[341754015,1731205557275,-152.551,0.0001481,2]
[341754016,1731205557294,-662.4553,0.00014873,2]
[341754017,1731205557318,-159.67307209,0.00014873,2]
[341754018,1731205557344,-159.67307209,0.00014887,2]
[341754019,1731205557366,-7850.8862,0.00014899,2]
[341754020,1731205557388,-179.45220023,0.000149,2]
[341754021,1731205557409,-476.929,0.000149,2]
[341754022,1731205557436,-159.67307209,0.000149,2]
[341754023,1731205557456,-33880.05697287,0.00014973,2]
[341754026,1731205631099,-150.0,0.000133,2]
[341754027,1731205631123,-1050.775642,0.00014497,2]
[341754028,1731205631144,-2500.0,0.00014873,2]
[341754029,1731205631166,-378.18544911,0.00014972,2]
[341754030,1731205631187,-300.0,0.00014972,2]
[341754031,1731205631208,-150.0,0.00014972,2]
[341754032,1731205631233,-20122.07985318,0.00014973,2]
[341754033,1731205631263,-84435.34543407,0.00014973,2]
[341754034,1731205631283,-500.0,0.00014973,2]
[341754035,1731205631304,-821.1363051,0.00014988,2]
[341754036,1731205631324,-37500.0,0.00014998,2]
[341754037,1731205631346,-2760.85434506,0.00014999,2]
[341754038,1731205631368,-500.0,0.00014999,2]
[341754039,1731205631390,-226255.14862871,0.00015,2]
[341754040,1731205632331,800.0,0.00026986,120]
[341754041,1731205633120,-250.0,0.000137,2]
[341754042,1731205633143,-35660.05464804,0.00015,2]
[341754043,1731205635134,-6119.92432735,0.00015,2]
[341754044,1731205643169,-217.23100549,0.00014999,2]
[341754045,1731205643192,-243.78780837,0.00014999,2]
[341754046,1731205643213,-168.8279743,0.00014999,2]
[341754047,1731205643244,-22632.08553705,0.00015,2]
[341754048,1731205644109,-500.0,0.00014973,2]
[341754049,1731205644132,-121930.24660699,0.00015,2]
[341754050,1731205652686,-150.0,0.00014732,2]
[341754051,1731205652710,-150.0,0.00014849,2]
[341754052,1731205652734,-419.5141,0.00014873,2]
[341754053,1731205652758,-300.0,0.00014907,2]
[341754054,1731205652782,-150.0,0.00014909,2]
[341754055,1731205652805,-150.0,0.0001491,2]
[341754056,1731205652828,-150.0,0.00014987,2]
[341754057,1731205652849,-109091.69746149,0.00015,2]
[341754058,1731205652879,-47594.82669111,0.00015,2]
[341754059,1731205683117,800.0,0.00026986,120]
[341754062,1731205727862,2084.36018352,0.00027,120]
[341754084,1731205805655,800.0,0.00026986,120]
[341754092,1731205832488,-1000.0,0.00013801,2]
[341754093,1731205832499,-250.0,0.00013823,2]
[341754094,1731205832510,-1929.51067861,0.000139,2]
[341754095,1731205832523,-3660.75261562,0.000139,2]
[341754096,1731205832532,-500.0,0.000139,5]
[341754097,1731205832542,-300.0,0.000139,5]
[341754098,1731205832552,-400.0,0.000139,5]
[341754099,1731205832561,-600.0,0.000139,5]
[341754100,1731205832570,-300.0,0.00013999,2]
[341754101,1731205832581,-1100.0,0.00014,5]
[341754102,1731205832591,-600.0,0.00014,5]
[341754103,1731205832601,-800.0,0.00014,5]
[341754104,1731205832610,-1142.41988002,0.00014,5]
[341754105,1731205832621,-57.58011998,0.00014,5]
[341754106,1731205832630,-1600.0,0.000141,5]
[341754107,1731205832642,-900.0,0.000141,5]
[341754108,1731205832652,-1200.0,0.000141,5]
[341754109,1731205832662,-1900.0,0.000141,5]
[341754110,1731205832671,-150.0,0.00014199,2]
[341754111,1731205832680,-2200.0,0.000142,5]
[341754112,1731205832690,-1200.0,0.000142,5]
[341754113,1731205832700,-1700.0,0.000142,5]
[341754114,1731205832709,-2500.0,0.000142,5]
[341754115,1731205832719,-1215.7480201,0.000143,5]
[341754116,1731205832730,-1584.2519799,0.000143,5]
[341754117,1731205832739,-1600.0,0.000143,5]
[341754118,1731205832749,-2100.0,0.000143,5]
[341754119,1731205832758,-2412.7250201,0.000143,5]
[341754120,1731205832769,-787.2749799,0.000143,5]
[341754121,1731205832778,-150.0,0.000144,2]
[341754122,1731205832787,-500.0,0.000144,5]
[341754124,1731205832796,-184.2600201,0.000144,5]
[341754126,1731205832807,-115.7399799,0.000144,5]
[341754127,1731205832817,-400.0,0.000144,5]
[341754128,1731205832827,-600.0,0.000144,5]
[341754129,1731205832836,-500.0,0.000145,5]
[341754130,1731205832847,-300.0,0.000145,5]
[341754131,1731205832856,-400.0,0.000145,5]
[341754132,1731205832867,-600.0,0.000145,5]
[341754133,1731205832876,-500.0,0.000146,5]
[341754134,1731205832890,-300.0,0.000146,5]
[341754135,1731205832900,-400.0,0.000146,5]
[341754136,1731205832910,-600.0,0.000146,5]
[341754137,1731205832919,-150.0,0.00014622,2]
[341754138,1731205832929,-382.67114929,0.00014631,2]
[341754139,1731205832938,-500.0,0.000147,5]
[341754141,1731205832947,-300.0,0.000147,5]
[341754143,1731205832956,-400.0,0.000147,5]
[341754145,1731205832965,-600.0,0.000147,5]
[341754147,1731205832974,-1531.63457873,0.00014734,2]
[341754149,1731205832983,-150.0,0.00014735,2]
[341754151,1731205832992,-152.82772214,0.00014736,2]
[341754153,1731205833001,-150.0,0.00014739,2]
[341754155,1731205833011,-300.0,0.00014752,2]
[341754157,1731205833020,-150.0,0.00014761,2]
[341754159,1731205833029,-150.0,0.00014766,2]
[341754161,1731205833039,-150.0,0.00014775,2]
[341754163,1731205833048,-150.0,0.00014778,2]
[341754165,1731205833057,-150.0,0.00014779,2]
[341754167,1731205833066,-1500.0,0.0001478,2]
[341754169,1731205833075,-150.0,0.00014798,2]
[341754171,1731205833084,-179.62617755,0.000148,2]
[341754173,1731205833094,-1080.0,0.000148,5]
[341754175,1731205833103,-600.0,0.000148,5]
[341754177,1731205833111,-800.0,0.000148,5]
[341754179,1731205833121,-1000.0,0.000148,5]
[341754181,1731205833130,-150.0,0.00014804,2]
[341754182,1731205833143,-150.0,0.00014807,2]
[341754185,1731205833153,-150.0,0.00014808,2]
[341754187,1731205833163,-276.54484351,0.00014809,2]
[341754189,1731205833172,-150.0,0.00014816,2]
[341754191,1731205833181,-155.843,0.00014822,2]
[341754193,1731205833191,-5967.594,0.00014822,2]
[341754194,1731205833200,-13618.0,0.00014822,2]
[341754196,1731205833209,-524.007,0.00014822,2]
[341754198,1731205833219,-1936.323,0.00014822,2]
[341754200,1731205833228,-150.0,0.00014824,2]
[341754202,1731205833236,-150.0,0.00014824,2]
[341754204,1731205833245,-150.0,0.00014826,2]
[341754205,1731205833255,-151.22702032,0.00014838,2]
[341754206,1731205833264,-150.0,0.00014842,2]
[341754207,1731205833273,-150.0,0.00014843,2]
[341754208,1731205833282,-229.45446964,0.00014848,2]
[341754209,1731205833291,-150.0,0.00014848,2]
[341754210,1731205833301,-300.0,0.00014848,2]
[341754211,1731205833312,-150.0,0.00014852,2]
[341754212,1731205833321,-150.0,0.00014857,2]
[341754213,1731205833332,-150.0,0.0001486,2]
[341754214,1731205833343,-150.0,0.00014861,2]
[341754215,1731205833353,-150.0,0.00014863,2]
[341754216,1731205833362,-150.0,0.00014865,2]
[341754217,1731205833371,-150.0,0.00014867,2]
[341754218,1731205833381,-150.0,0.00014867,2]
[341754219,1731205833393,-150.0,0.00014868,2]
[341754220,1731205833402,-150.0,0.0001487,2]
[341754221,1731205833411,-500.0,0.00014873,2]
[341754222,1731205833420,-324.3430276,0.00014873,2]
[341754223,1731205833430,-150.0,0.00014874,2]
[341754224,1731205833439,-150.0,0.00014876,2]
[341754225,1731205833447,-150.0,0.0001488,2]
[341754226,1731205833456,-150.0,0.00014881,2]
[341754227,1731205833465,-150.0,0.00014886,2]
[341754228,1731205833474,-150.0,0.00014888,2]
[341754229,1731205833485,-152.05071458,0.00014889,2]
[341754230,1731205833494,-150.0,0.0001489,2]
[341754231,1731205833503,-174.27675053,0.0001489,2]
[341754232,1731205833512,-150.0,0.00014892,2]
[341754233,1731205833521,-150.0,0.00014895,2]
[341754234,1731205833529,-500.0,0.00014899,2]
[341754235,1731205833539,-187.92298169,0.00014899,2]
[341754236,1731205833548,-500.0,0.00014899,2]
[341754237,1731205833557,-500.0,0.00014899,2]
[341754238,1731205833566,-500.0,0.00014899,2]
[341754239,1731205833575,-500.0,0.00014899,2]
[341754240,1731205833584,-500.0,0.00014899,2]
[341754241,1731205833593,-182.22701553,0.000149,2]
[341754242,1731205833602,-83077.05406899,0.000149,2]
[341754243,1731205833617,-810.86059867,0.000149,2]
[341754244,1731205833682,-698507.79077011,0.000149,2]
[341754245,1731205833777,-48868.13710217,0.000149,2]
[341754246,1731205833788,-1616.18669621,0.000149,2]
[341754251,1731205839020,-397501.38312964,0.000149,2]
[341754252,1731205839032,-16773.14607898,0.000149,2]
[341754253,1731205839044,-21265.17216433,0.000149,2]
[341754254,1731205839055,-11990.1707856,0.000149,2]
[341754255,1731205839066,-1463.55143311,0.000149,2]
[341754256,1731205839078,-361.17847976,0.000149,2]
[341754257,1731205839089,-888.73118885,0.000149,2]
[341754258,1731205839100,-774.31977758,0.000149,2]
[341754259,1731205839111,-317752.78501998,0.000149,2]
[341754260,1731205839146,-391528.85538832,0.000149,2]
[341754264,1731205839476,-699334.93631722,0.000149,2]
[341754281,1731205839627,-128345.12988383,0.000149,2]
[341754287,1731205839682,-46099.03781437,0.000149,2]
[341754289,1731205839694,-154500.74573988,0.000149,2]
[341754363,1731205840759,-253.04548364,0.000149,2]
[341754364,1731205840826,-71187.96637682,0.000149,2]
[341754365,1731205840839,-771.41,0.000149,2]
[341754366,1731205840851,-327.70950666,0.000149,2]
[341754367,1731205840863,-5511.15204272,0.000149,2]
[341754368,1731205840874,-7688.70762394,0.000149,2]
[341754369,1731205840922,-30862.12006753,0.000149,2]
[341754380,1731205843806,-55174.44304522,0.000149,2]
[341754381,1731205843817,-17707.7346725,0.000149,2]
[341754382,1731205843828,-38523.44178296,0.000149,2]
[341754383,1731205843839,-2625.53914895,0.000149,2]
[341754384,1731205843850,-92339.53292277,0.000149,2]
[341754390,1731205843942,-87521.84075957,0.000149,2]
[341754392,1731205844110,-787116.80638082,0.000149,2]
[341754393,1731205844119,-1248.74968569,0.000149,2]
[341754394,1731205844129,-179.62617755,0.000149,2]
[341754395,1731205844140,-150.0,0.00014902,2]
[341754396,1731205844150,-150.0,0.00014902,2]
[341754397,1731205844159,-150.0,0.00014903,2]
[341754398,1731205844168,-150.0,0.00014903,2]
[341754399,1731205844177,-150.0,0.00014906,2]
[341754400,1731205844186,-150.0,0.00014907,2]
[341754401,1731205844195,-300.0,0.00014907,2]
[341754402,1731205844204,-150.0,0.00014913,2]
[341754403,1731205844213,-150.0,0.00014921,2]
[341754404,1731205844222,-150.0,0.00014925,2]
[341754405,1731205844231,-150.0,0.00014927,2]
[341754406,1731205844240,-150.0,0.00014928,2]
[341754407,1731205844250,-150.0,0.0001493,2]
[341754408,1731205844260,-150.0,0.00014932,2]
[341754409,1731205844270,-150.0,0.00014936,2]
[341754410,1731205844279,-150.0,0.00014937,2]
[341754411,1731205844289,-150.0,0.00014938,2]
[341754412,1731205844298,-150.0,0.00014941,2]
[341754413,1731205844313,-150.0,0.00014943,2]
[341754414,1731205844322,-150.0,0.00014944,2]
[341754416,1731205844332,-150.0,0.00014945,2]
[341754417,1731205844342,-150.0,0.00014949,2]
[341754418,1731205844351,-150.0,0.00014954,2]
[341754419,1731205844360,-150.0,0.00014954,2]
[341754420,1731205844370,-150.0,0.00014954,2]
[341754421,1731205844379,-150.0,0.00014966,2]
[341754422,1731205844391,-1500.0,0.00014968,2]
[341754423,1731205844400,-150.0,0.00014968,2]
[341754424,1731205844410,-150.0,0.00014969,2]
[341754425,1731205844419,-150.0,0.00014972,2]
[341754426,1731205844428,-500.0,0.00014973,2]
[341754427,1731205844437,-500.0,0.00014973,2]
[341754428,1731205844447,-500.0,0.00014973,2]
[341754429,1731205844456,-500.0,0.00014973,2]
[341754430,1731205844466,-284.33842748,0.00014973,2]
[341754431,1731205844475,-500.0,0.00014973,2]
[341754432,1731205844485,-205.33834735,0.00014973,2]
[341754433,1731205844495,-150.0,0.00014973,2]
[341754434,1731205844504,-150.0,0.00014977,2]
[341754435,1731205844513,-150.0,0.00014978,2]
[341754436,1731205844522,-150.0,0.0001498,2]
[341754437,1731205844532,-150.0,0.00014982,2]
[341754438,1731205844541,-300.0,0.00014985,2]
[341754439,1731205844550,-150.0,0.00014985,2]
[341754440,1731205844559,-187.80518505,0.00014987,2]
[341754441,1731205844569,-1311.529292,0.0001499,2]
[341754442,1731205844578,-150.0,0.00014993,2]
[341754443,1731205844587,-256.49073136,0.00014999,2]
[341754444,1731205844596,-5443616.17038951,0.00015,2]
[341754445,1731205844608,-925133.71146132,0.00015,2]
[341754446,1731205844619,-22474.39323203,0.00015,2]
[341754448,1731205846471,-287047.50217418,0.00015,2]
[341754449,1731205846500,-23165.22230358,0.00015,2]
[341754450,1731205846511,-781.41,0.00015,2]
[341754451,1731205846533,-12132.11651987,0.00015,2]
[341754452,1731205846680,-219124.83109398,0.00015,2]
[341754453,1731205846760,-570.57002,0.00015,2]
[341754454,1731205846771,-7828.9593,0.00015,2]
[341754455,1731205846794,-104296.44265004,0.00015,2]
[341754457,1731205862990,800.0,0.00026877,120]
[341754461,1731205922891,4500.0,0.00027,60]
[341754462,1731206081177,150.0,0.00011137,2]
[341754463,1731206081200,34.38,0.00011137,2]
[341754465,1731206114275,1970.8,0.00014435,7]
[341754466,1731206167217,150.0,0.00011994,2]
[341754467,1731206167239,150.0,0.00011994,2]
[341754468,1731206167260,150.0,0.00011994,2]
[341754469,1731206167281,150.0,0.00011994,2]
[341754470,1731206167303,150.0,0.00011994,2]
[341754471,1731206167324,150.0,0.00011994,2]
[341754472,1731206167346,109.41,0.00011994,2]
[341754481,1731206403916,150.0,0.00011994,2]
[341754482,1731206404335,150.0,0.00011994,2]
[341754483,1731206404556,150.0,0.00011994,2]
[341754484,1731206404761,150.0,0.00011994,2]
[341754485,1731206404791,2.10339305,0.00011994,2]
[341754489,1731206832876,1250.99063231,0.00027,60]
[341754490,1731206845259,-1000.0,0.00013857,2]
[341754491,1731206845292,-2112.42897874,0.00013888,2]
[341754492,1731206845326,-250.0,0.00013888,2]
[341754493,1731206845361,-227.79,0.00013895,2]
[341754494,1731206845395,-11575.19,0.00013905,2]
[341754495,1731206845432,-227.3,0.00013909,2]
[341754496,1731206845466,-314.54,0.00013944,2]
[341754497,1731206845499,-500.0,0.00014,3]
[341754498,1731206845532,-500.0,0.00014,4]
[341754499,1731206845566,-500.0,0.00014,2]
[341754500,1731206845600,-400.0,0.00014,5]
[341754501,1731206845637,-1009.41,0.00014258,2]
[341754502,1731206845677,-464.29,0.00014473,2]
[341754503,1731206845714,-927.77629536,0.00014497,2]
[341754504,1731206845746,-393.97229507,0.00014624,2]
[341754505,1731206845767,-1522.87,0.00014641,2]
[341754506,1731206845790,-150.0,0.00014731,2]
[341754507,1731206846256,-150.0,0.00014733,2]
[341754508,1731206846298,-150.99,0.00014745,2]
[341754509,1731206846318,-940.87,0.00014764,2]
[341754510,1731206846337,-7668.67,0.00014764,2]
[341754511,1731206846356,-225.13,0.00014764,2]
[341754512,1731206846378,-150.0,0.00014769,2]
[341754513,1731206846399,-150.0,0.00014788,2]
[341754514,1731206846430,-150.0,0.00014793,2]
[341754515,1731206846454,-150.0,0.00014798,2]
[341754516,1731206846475,-150.0,0.00014798,2]
[341754517,1731206846495,-5564.9875,0.000148,2]
[341754518,1731206846518,-150.0,0.00014805,2]
[341754519,1731206846540,-150.0,0.00014808,2]
[341754520,1731206846562,-150.0,0.00014815,2]
[341754521,1731206846585,-150.0,0.00014845,2]
[341754522,1731206846607,-150.0,0.00014851,2]
[341754523,1731206846632,-150.0,0.00014856,2]
[341754524,1731206846653,-1777.1722147,0.00014862,2]
[341754525,1731206846679,-150.0,0.00014872,2]
[341754526,1731206846699,-463.531,0.00014872,2]
[341754527,1731206846722,-1399.853,0.00014872,2]
[341754528,1731206846742,-7631.391,0.00014872,2]
[341754529,1731206846762,-1098.002,0.00014872,2]
[341754530,1731206846782,-813.0,0.00014872,2]
[341754531,1731206846802,-1258.0,0.00014872,2]
[341754532,1731206846822,-2909.0,0.00014872,2]
[341754533,1731206846842,-927.996,0.00014872,2]
[341754534,1731206846861,-3490.986,0.00014872,2]
[341754535,1731206846881,-500.0,0.00014879,2]
[341754536,1731206846904,-150.0,0.0001488,2]
[341754537,1731206846927,-500.0,0.0001488,2]
[341754538,1731206846946,-500.0,0.0001488,2]
[341754539,1731206846968,-213.70172856,0.00014897,2]
[341754540,1731206846990,-150.0,0.00014899,2]
[341754541,1731206847010,-171.57046906,0.000149,2]
[341754542,1731206847029,-771.7545,0.000149,2]
[341754543,1731206847049,-200.0,0.000149,2]
[341754544,1731206847069,-8080.54989548,0.000149,2]
[341754545,1731206847088,-485.5146,0.000149,2]
[341754546,1731206847108,-159.76367702,0.000149,2]
[341754547,1731206847128,-1231.142418,0.000149,2]
[341754548,1731206847149,-1011.0,0.000149,2]
[341754549,1731206847172,-718.31243863,0.000149,2]
[341754550,1731206847196,-150.0,0.00014905,2]
[341754551,1731206847218,-150.0,0.00014908,2]
[341754552,1731206847239,-165.273,0.00014909,2]
[341754553,1731206847261,-1045.978,0.0001491,2]
[341754554,1731206847283,-150.0,0.00014914,2]
[341754555,1731206847305,-150.0,0.00014916,2]
[341754556,1731206847327,-150.0,0.00014927,2]
[341754557,1731206847349,-150.0,0.00014935,2]
[341754558,1731206847370,-150.0,0.00014943,2]
[341754559,1731206847393,-150.0,0.00014947,2]
[341754560,1731206847416,-150.0,0.00014961,2]
[341754561,1731206847441,-150.0,0.00014965,2]
[341754562,1731206847464,-150.0,0.0001497,2]
[341754563,1731206847487,-150.0,0.00014971,2]
[341754564,1731206847506,-500.0,0.00014973,2]
[341754565,1731206847528,-150.0,0.00014982,2]
[341754566,1731206847550,-150.0,0.00014988,2]
[341754567,1731206847573,-1055.6904544,0.00014989,2]
[341754568,1731206847593,-977.1194507,0.0001499,2]
[341754569,1731206847613,-898.548447,0.0001499,2]
[341754570,1731206847635,-819.9774432,0.0001499,2]
[341754571,1731206847657,-432.57950405,0.0001499,2]
[341754572,1731206847680,-432.57950405,0.0001499,2]
[341754573,1731206847701,-432.57950405,0.0001499,2]
[341754574,1731206847727,-150.0,0.00014992,2]
[341754575,1731206847747,-213.74227613,0.00014999,2]
[341754576,1731206847769,-500.0,0.00014999,2]
[341754577,1731206847793,-500.0,0.00014999,2]
[341754578,1731206847817,-522.69302435,0.00014999,2]
[341754579,1731206847839,-500.0,0.00014999,2]
[341754580,1731206847860,-180.38947679,0.00014999,2]
[341754581,1731206847883,-500.0,0.00014999,2]
[341754582,1731206847904,-500.0,0.00014999,2]
[341754583,1731206847926,-500.0,0.00014999,2]
[341754584,1731206847948,-500.0,0.00014999,2]
[341754585,1731206847968,-556.96994127,0.00014999,2]
[341754586,1731206847989,-500.0,0.00014999,2]
[341754587,1731206848010,-500.0,0.00014999,2]
[341754588,1731206848031,-1002.81942467,0.00014999,2]
[341754589,1731206848055,-1120.23110249,0.00014999,5]
[341754590,1731206848075,-1120.2311025,0.00014999,5]
[341754591,1731206848095,-1120.23110249,0.00014999,5]
[341754592,1731206848116,-500.0,0.00014999,2]
[341754593,1731206848137,-83698.122227,0.00015,2]
[341754594,1731206851934,150.0,0.00011052,2]
[341754595,1731206851955,17.19,0.00011052,2]
[341754612,1731206996226,192693.0,0.00027,60]
[341754635,1731207031792,-287.9328,0.00013814,2]
[341754636,1731207031805,-59.5672,0.00013814,2]
[341754637,1731207031814,-347.5,0.00014504,2]
[341754638,1731207031823,-165.86,0.00014684,2]
[341754639,1731207031832,-150.0,0.00014872,2]
[341754640,1731207031841,-150.0,0.00014899,2]
[341754641,1731207031850,-2813.85275549,0.000149,2]
[341754642,1731207031862,-398.2,0.000149,2]
[341754643,1731207031873,-604.32337629,0.000149,2]
[341754644,1731207031884,-8332.049264,0.000149,2]
[341754645,1731207031977,-1184.54366227,0.000149,2]
[341754646,1731207031988,-1396.50221221,0.000149,2]
[341754647,1731207031999,-18360.00006,0.000149,2]
[341754648,1731207032010,-12437.28870817,0.000149,2]
[341754649,1731207032025,-713.83790163,0.000149,2]
[341754650,1731207032035,-462.49352972,0.000149,2]
[341754651,1731207032044,-177.621912,0.000149,2]
[341754652,1731207032054,-500.0,0.00014973,2]
[341754653,1731207032063,-281.5036879,0.00014989,2]
[341754654,1731207032072,-262.5183378,0.0001499,2]
[341754655,1731207032081,-243.5329876,0.0001499,2]
[341754656,1731207032090,-224.5476375,0.0001499,2]
[341754657,1731207032099,-178.11856344,0.00014999,2]
[341754658,1731207032107,-362187.06734851,0.00015,2]
[341754659,1731207032119,-10897.70608091,0.00015,2]
[341754660,1731207032129,-613.77,0.00015,2]
[341754665,1731207038062,-150.01,0.00014999,2]
[341754666,1731207038072,-1114.42557993,0.00015,2]
[341754667,1731207038139,-6294.53940053,0.00015,2]
[341754668,1731207038151,-256786.71654807,0.00015,2]
[341754746,1731207039013,-19859.3567764,0.00015,2]
[341754768,1731207039216,-800.0,0.00015,2]
[341754862,1731207040051,-1256.22900003,0.00015,2]
[341754864,1731207040067,-31696.89296095,0.00015,2]
[341754886,1731207040264,-586.22769462,0.00015,2]
[341754955,1731207042717,150.0,0.00012501,5]
[341754958,1731207042940,-279.46647295,0.00014973,2]
[341754959,1731207042951,-15990.0587321,0.00015,2]
[341754960,1731207042963,-15228.00050269,0.00015,2]
[341754961,1731207042975,-204175.78139485,0.00015,2]
[341754962,1731207043167,-6099.05064132,0.00015,2]
[341754963,1731207043179,-1137.53171983,0.00015,2]
[341754964,1731207043192,-2600489.5546521,0.00015,2]
[341754965,1731207043204,-2630.21367992,0.00015,2]
[341754966,1731207043216,-3018.12152664,0.00015,2]
[341754975,1731207046359,-521.41345697,0.00015,2]
[341754978,1731207543633,800.0,0.00026986,120]
[341754979,1731207573682,150.0,0.00010828,2]
[341754980,1731207573704,17.19,0.00010828,2]
[341754981,1731207588926,1700.67,0.00027,60]
[341754984,1731207675130,152.533,0.0002376,60]
[341754985,1731207723764,800.0,0.00026877,120]
[341754986,1731207860167,150.0,0.00011661,2]
[341754987,1731207860190,150.0,0.00011661,2]
[341754988,1731207860212,150.0,0.00011661,2]
[341754989,1731207860234,150.0,0.00011661,2]
[341754990,1731207860255,150.0,0.00011661,2]
[341754991,1731207860275,150.0,0.00011661,2]
[341754992,1731207860296,115.53,0.00011661,2]
[341754993,1731207915325,6002.21,0.000145,7]
[341754994,1731208060873,2515.0,0.00027,60]
[341754995,1731208094015,1000.0,0.00027,60]
[341755004,1731208169148,-150.0,0.00013441,2]
[341755005,1731208169170,-1000.0,0.00013457,2]
[341755006,1731208169195,-1698.41,0.00013493,2]
[341755007,1731208169217,-199.015444,0.000135,2]
[341755014,1731208232098,-488.44,0.00013299,2]
[341755015,1731208232109,-7899.59,0.00013323,2]
[341755016,1731208232121,-321.52,0.00013323,2]
[341755017,1731208232134,-412.71947731,0.000135,2]
[341755018,1731208232145,-730.57,0.00013502,2]
[341755019,1731208232432,-158.9,0.00013516,2]
[341755020,1731208232454,-500.0,0.00013518,2]
[341755021,1731208232464,-468.4,0.00013518,2]
[341755022,1731208232473,-243.55,0.00013518,2]
[341755023,1731208232482,-9655.92,0.00013533,2]
[341755024,1731208232491,-200.0,0.00013535,2]
[341755025,1731208232500,-150.99,0.00013535,2]
[341755026,1731208232509,-2448.38,0.00013544,2]
[341755027,1731208232518,-170.6,0.00013544,2]
[341755028,1731208232527,-346.65,0.00013545,2]
[341755029,1731208232536,-250.0,0.00013563,2]
[341755030,1731208232545,-150.92,0.00013576,2]
[341755031,1731208232554,-1921.28,0.00013584,2]
[341755032,1731208232563,-5749.53625131,0.00013609,2]
[341755033,1731208232576,-20909.2737674,0.00013609,2]
[341755034,1731208232587,-884.21951292,0.00013609,2]
[341755117,1731208239089,-1716.59148619,0.00013609,2]
[341755119,1731208239101,-3658.75760901,0.00013609,2]
[341755121,1731208239112,-10729.9312,0.00013609,2]
[341755124,1731208239125,-814.51397326,0.00013609,2]
[341755126,1731208239134,-500.0,0.00013699,2]
[341755128,1731208239143,-250.0,0.000137,2]
[341755130,1731208239152,-179.93891335,0.00013925,2]
[341755132,1731208239163,-835.59108665,0.00013925,2]
[341755133,1731208239172,-468.4,0.00014194,2]
[341755135,1731208239182,-229.37,0.00014214,2]
[341755138,1731208239191,-594.87,0.00014214,2]
[341755140,1731208239202,-594.87,0.00014221,2]
[341755142,1731208239211,-594.87,0.00014229,2]
[341755143,1731208239220,-594.87,0.00014236,2]
[341755145,1731208239230,-594.87,0.00014244,2]
[341755148,1731208239239,-150.0,0.00014244,2]